lending/lending_fUSD_20250121
["ID","MTS","AMOUNT","RATE_DAILY","PERIOD"]
[349818301,1737450649961,-1609.07,0.00020273,2]
[349818302,1737450649971,-728.03,0.00020273,2]
[349818303,1737450649981,-500.0,0.00020273,2]
[349818304,1737450649991,-500.0,0.00020273,2]
[349818305,1737450650000,-545.49,0.00020273,2]
[349818306,1737450650010,-839.08,0.00020273,2]
[349818307,1737450650019,-222.633939,0.00020273,2]
[349818308,1737450650029,-500.0,0.00020273,2]
[349818309,1737450650042,-500.0,0.00020273,2]
[349818310,1737450650051,-535.43819179,0.00020273,2]
[349818311,1737450650062,-500.0,0.00020273,2]
[349818312,1737450650072,-927.49,0.00020273,2]
[349818313,1737450650083,-500.0,0.00020273,2]
[349818314,1737450650092,-500.0,0.00020273,2]
[349818315,1737450650103,-500.0,0.00020273,2]
[349818316,1737450650115,-500.0,0.00020273,2]
[349818317,1737450650124,-537.93,0.00020273,2]
[349818318,1737450650134,-500.0,0.00020273,2]
[349818319,1737450650144,-242.188581,0.00020273,2]
[349818320,1737450650160,-500.0,0.00020273,2]
[349818321,1737450650172,-557.12,0.00020273,2]
[349818322,1737450650181,-805.94,0.00020273,2]
[349818323,1737450650192,-837.36,0.00020273,2]
[349818324,1737450650202,-500.0,0.00020273,2]
[349818325,1737450650213,-500.0,0.00020273,2]
[349818326,1737450650224,-500.0,0.00020273,2]
[349818327,1737450650239,-1207.54,0.00020273,2]
[349818328,1737450650251,-500.0,0.00020273,2]
[349818329,1737450650261,-500.0,0.00020273,2]
[349818330,1737450650272,-500.0,0.00020273,2]
[349818331,1737450650284,-1050.36,0.00020273,2]
[349818332,1737450650293,-728.95,0.00020273,2]
[349818333,1737450650303,-171.71377,0.00020273,2]
[349818334,1737450650313,-654.59,0.00020273,2]
[349818335,1737450650322,-151.0,0.00020273,2]
[349818336,1737450650333,-1201.91,0.00020273,2]
[349818337,1737450650344,-500.0,0.00020273,2]
[349818338,1737450650353,-821.41,0.00020273,2]
[349818339,1737450650363,-500.0,0.00020273,2]
[349818340,1737450650372,-1041.36,0.00020273,2]
[349818341,1737450650383,-500.0,0.00020273,2]
[349818342,1737450650392,-151.0,0.00020273,2]
[349818343,1737450650403,-626.41,0.00020273,2]
[349818344,1737450650413,-151.0,0.00020273,2]
[349818345,1737450650423,-599.33,0.00020273,2]
[349818346,1737450650432,-500.0,0.00020273,2]
[349818347,1737450650442,-795.91,0.00020273,2]
[349818348,1737450650451,-542.672123,0.00020273,2]
[349818349,1737450650460,-1676.17,0.00020273,2]
[349818350,1737450650469,-236.71,0.00020273,2]
[349818351,1737450650479,-537.99,0.00020273,2]
[349818352,1737450650488,-1571.69,0.00020273,2]
[349818353,1737450650497,-1491.21,0.00020273,2]
[349818354,1737450650507,-1067.25,0.00020273,2]
[349818355,1737450650516,-1814.55,0.00020273,2]
[349818356,1737450650525,-151.0,0.00020273,2]
[349818357,1737450650534,-192.12,0.00020273,2]
[349818358,1737450650544,-151.0,0.00020273,2]
[349818359,1737450650553,-573.56,0.00020273,2]
[349818360,1737450650563,-182.506579,0.00020273,2]
[349818361,1737450650572,-784.8,0.00020273,2]
[349818362,1737450650581,-500.0,0.00020273,2]
[349818363,1737450650591,-2494.89,0.00020273,2]
[349818364,1737450650601,-182.506579,0.00020273,2]
[349818365,1737450650611,-502.38,0.00020273,2]
[349818366,1737450650621,-500.0,0.00020273,2]
[349818367,1737450650631,-267.95538,0.00020273,2]
[349818368,1737450650641,-695.98,0.00020273,2]
[349818369,1737450650650,-500.0,0.00020273,2]
[349818370,1737450650660,-341.36442673,0.00020273,2]
[349818371,1737450650670,-1436.11,0.00020273,2]
[349818372,1737450650682,-824.62,0.00020273,2]
[349818373,1737450650692,-536.42,0.00020273,2]
[349818374,1737450650701,-500.0,0.00020273,2]
[349818375,1737450650711,-764.64,0.00020273,2]
[349818376,1737450650721,-500.0,0.00020273,2]
[349818377,1737450650730,-500.0,0.00020273,2]
[349818378,1737450650739,-500.0,0.00020273,2]
[349818379,1737450650749,-1470.78,0.00020273,2]
[349818380,1737450650759,-360.086314,0.00020273,2]
[349818381,1737450650769,-1333.1,0.00020273,2]
[349818382,1737450650779,-500.0,0.00020273,2]
[349818383,1737450650788,-1291.48,0.00020273,2]
[349818384,1737450650797,-500.0,0.00020273,2]
[349818385,1737450650807,-500.0,0.00020273,2]
[349818386,1737450650818,-945.45,0.00020273,2]
[349818387,1737450650828,-668.66,0.00020273,2]
[349818388,1737450650837,-500.0,0.00020273,2]
[349818389,1737450650847,-500.0,0.00020273,2]
[349818390,1737450650856,-500.0,0.00020273,2]
[349818391,1737450650865,-1457.67,0.00020273,2]
[349818392,1737450650875,-500.0,0.00020273,2]
[349818393,1737450650884,-1553.35,0.00020273,2]
[349818394,1737450650893,-500.0,0.00020273,2]
[349818395,1737450650903,-434.99891,0.00020273,2]
[349818396,1737450650912,-203.82937226,0.00020275,2]
[349818397,1737450650930,-1000.0,0.00020399,2]
[349818398,1737450650939,-2701.28,0.000204,2]
[349818399,1737450650948,-203.82937226,0.000204,2]
[349818400,1737450650958,-537.04,0.0002041,2]
[349818401,1737450650967,-164.56402223,0.00020417,2]
[349818402,1737450650976,-168.61,0.00020432,2]
[349818403,1737450650986,-461.9,0.00020504,2]
[349818404,1737450650995,-203.82937226,0.00020525,2]
[349818405,1737450651004,-500.0,0.00020547,2]
[349818406,1737450651013,-888.22,0.00020547,2]
[349818407,1737450651023,-537.04,0.00020547,2]
[349818408,1737450651034,-500.0,0.00020547,2]
[349818409,1737450651044,-500.0,0.00020547,2]
[349818410,1737450651054,-529.38681276,0.00020547,2]
[349818411,1737450651063,-746.9,0.00020547,2]
[349818412,1737450651072,-500.0,0.00020547,2]
[349818413,1737450651082,-1111.59,0.00020547,2]
[349818414,1737450651091,-500.0,0.00020547,2]
[349818415,1737450651100,-500.0,0.00020547,2]
[349818416,1737450651112,-500.0,0.00020547,2]
[349818417,1737450651122,-500.0,0.00020547,2]
[349818418,1737450651131,-500.0,0.00020547,2]
[349818419,1737450651141,-500.0,0.00020547,2]
[349818420,1737450651150,-500.0,0.00020547,2]
[349818421,1737450651160,-500.0,0.00020547,2]
[349818422,1737450651169,-500.0,0.00020547,2]
[349818423,1737450651179,-500.0,0.00020547,2]
[349818424,1737450651188,-12658.58,0.00020547,2]
[349818425,1737450651198,-500.0,0.00020547,2]
[349818426,1737450651208,-500.0,0.00020547,2]
[349818427,1737450651219,-996.22,0.00020547,2]
[349818428,1737450651229,-500.0,0.00020547,2]
[349818429,1737450651238,-1636.09,0.00020547,2]
[349818430,1737450651248,-622.86,0.00020547,2]
[349818431,1737450651257,-500.0,0.00020547,2]
[349818432,1737450651266,-500.0,0.00020547,2]
[349818433,1737450651275,-500.0,0.00020547,2]
[349818434,1737450651285,-517.41,0.00020547,2]
[349818435,1737450651294,-775.51,0.00020547,2]
[349818436,1737450651303,-1139.84,0.00020547,2]
[349818437,1737450651313,-500.0,0.00020547,2]
[349818438,1737450651323,-704.93,0.00020547,2]
[349818439,1737450651332,-1296.17,0.00020547,2]
[349818440,1737450651342,-500.0,0.00020547,2]
[349818441,1737450651351,-500.0,0.00020547,2]
[349818442,1737450651361,-1305.54,0.00020547,2]
[349818443,1737450651370,-500.0,0.00020547,2]
[349818444,1737450651380,-500.0,0.00020547,2]
[349818445,1737450651389,-1608.19,0.00020547,2]
[349818446,1737450651398,-500.0,0.00020547,2]
[349818447,1737450651408,-1609.07,0.00020547,2]
[349818448,1737450651417,-728.03,0.00020547,2]
[349818449,1737450651431,-457.34,0.00020547,2]
[349818450,1737450651441,-500.0,0.00020547,2]
[349818451,1737450651450,-545.49,0.00020547,2]
[349818452,1737450651460,-839.08,0.00020547,2]
[349818453,1737450651469,-500.0,0.00020547,2]
[349818454,1737450651479,-500.0,0.00020547,2]
[349818455,1737450651488,-500.0,0.00020547,2]
[349818456,1737450651498,-927.49,0.00020547,2]
[349818457,1737450651507,-500.0,0.00020547,2]
[349818458,1737450651516,-500.0,0.00020547,2]
[349818459,1737450651526,-500.0,0.00020547,2]
[349818460,1737450651536,-276.12,0.00020547,2]
[349818461,1737450651546,-537.93,0.00020547,2]
[349818462,1737450651555,-244.41930528,0.00020547,2]
[349818463,1737450651567,-500.0,0.00020547,2]
[349818464,1737450651577,-557.12,0.00020547,2]
[349818465,1737450651586,-805.94,0.00020547,2]
[349818466,1737450651596,-837.36,0.00020547,2]
[349818467,1737450651606,-500.0,0.00020547,2]
[349818468,1737450651617,-500.0,0.00020547,2]
[349818469,1737450651627,-500.0,0.00020547,2]
[349818470,1737450651637,-1207.54,0.00020547,2]
[349818471,1737450651647,-500.0,0.00020547,2]
[349818472,1737450651657,-500.0,0.00020547,2]
[349818473,1737450651667,-500.0,0.00020547,2]
[349818474,1737450651677,-1050.36,0.00020547,2]
[349818475,1737450651686,-728.95,0.00020547,2]
[349818476,1737450651696,-654.59,0.00020547,2]
[349818477,1737450651705,-1201.91,0.00020547,2]
[349818478,1737450651715,-500.0,0.00020547,2]
[349818479,1737450651724,-821.41,0.00020547,2]
[349818480,1737450651734,-500.0,0.00020547,2]
[349818481,1737450651743,-1041.36,0.00020547,2]
[349818482,1737450651753,-500.0,0.00020547,2]
[349818483,1737450651765,-626.41,0.00020547,2]
[349818484,1737450651775,-599.33,0.00020547,2]
[349818485,1737450651785,-500.0,0.00020547,2]
[349818486,1737450651796,-795.91,0.00020547,2]
[349818487,1737450651806,-1676.17,0.00020547,2]
[349818488,1737450651818,-537.99,0.00020547,2]
[349818489,1737450651828,-1571.69,0.00020547,2]
[349818490,1737450651838,-1491.21,0.00020547,2]
[349818491,1737450651965,-1067.25,0.00020547,2]
[349818492,1737450651980,-1814.55,0.00020547,2]
[349818493,1737450651990,-573.56,0.00020547,2]
[349818494,1737450652000,-784.8,0.00020547,2]
[349818495,1737450652011,-500.0,0.00020547,2]
[349818496,1737450652021,-2494.89,0.00020547,2]
[349818497,1737450652031,-502.38,0.00020547,2]
[349818498,1737450652045,-500.0,0.00020547,2]
[349818499,1737450652055,-695.98,0.00020547,2]
[349818500,1737450652069,-500.0,0.00020547,2]
[349818501,1737450652079,-1436.11,0.00020547,2]
[349818502,1737450652089,-824.62,0.00020547,2]
[349818503,1737450652100,-500.0,0.00020547,2]
[349818504,1737450652110,-764.64,0.00020547,2]
[349818505,1737450652123,-500.0,0.00020547,2]
[349818506,1737450652133,-500.0,0.00020547,2]
[349818507,1737450652143,-500.0,0.00020547,2]
[349818508,1737450652152,-290.873762,0.00020547,2]
[349818509,1737450652162,-1470.78,0.00020547,2]
[349818510,1737450652171,-1333.1,0.00020547,2]
[349818511,1737450652180,-500.0,0.00020547,2]
[349818512,1737450652191,-1291.48,0.00020547,2]
[349818513,1737450652201,-290.873762,0.00020547,2]
[349818514,1737450652210,-500.0,0.00020547,2]
[349818515,1737450652220,-500.0,0.00020547,2]
[349818516,1737450652229,-945.45,0.00020547,2]
[349818517,1737450652239,-668.66,0.00020547,2]
[349818518,1737450652249,-500.0,0.00020547,2]
[349818519,1737450652259,-500.0,0.00020547,2]
[349818520,1737450652268,-604.2067381,0.00020547,2]
[349818521,1737450652278,-1457.67,0.00020547,2]
[349818522,1737450652287,-500.0,0.00020547,2]
[349818523,1737450652297,-1553.35,0.00020547,2]
[349818524,1737450652306,-500.0,0.00020547,2]
[349818525,1737450652318,-171.724417,0.00020596,2]
[349818526,1737450652331,-203.82937226,0.0002065,2]
[349818527,1737450652341,-213.393456,0.0002068,2]
[349818528,1737450652353,-537.04,0.00020684,2]
[349818529,1737450652363,-874.25,0.00020688,2]
[349818530,1737450652372,-203.82937226,0.00020775,2]
[349818531,1737450652382,-500.0,0.00020821,2]
[349818532,1737450652391,-151.0,0.00020821,2]
[349818533,1737450652400,-152.603529,0.00020821,2]
[349818534,1737450652412,-152.15771,0.00020821,2]
[349818535,1737450652421,-151.0,0.00020821,2]
[349818536,1737450652431,-151.0,0.00020821,2]
[349818537,1737450652440,-234.095591,0.00020821,2]
[349818538,1737450652449,-888.22,0.00020821,2]
[349818539,1737450652459,-151.0,0.00020821,2]
[349818540,1737450652469,-155.730886,0.00020821,2]
[349818541,1737450652478,-537.04,0.00020821,2]
[349818542,1737450652488,-151.0,0.00020821,2]
[349818543,1737450652498,-151.0,0.00020821,2]
[349818544,1737450652507,-151.735605,0.00020821,2]
[349818545,1737450652517,-155.676667,0.00020821,2]
[349818546,1737450652526,-577.10967722,0.00020821,2]
[349818547,1737450652535,-151.0,0.00020821,2]
[349818548,1737450652545,-500.0,0.00020821,2]
[349818549,1737450652555,-151.0,0.00020821,2]
[349818550,1737450652566,-151.421503,0.00020821,2]
[349818551,1737450652575,-151.421503,0.00020821,2]
[349818552,1737450652585,-151.0,0.00020821,2]
[349818553,1737450652595,-746.9,0.00020821,2]
[349818554,1737450652605,-500.0,0.00020821,2]
[349818555,1737450652617,-1111.59,0.00020821,2]
[349818556,1737450652627,-151.0,0.00020821,2]
[349818557,1737450652637,-151.0,0.00020821,2]
[349818558,1737450652646,-500.0,0.00020821,2]
[349818559,1737450652656,-500.0,0.00020821,2]
[349818560,1737450652665,-568.47,0.00020821,2]
[349818561,1737450652675,-726.391772,0.00020821,2]
[349818562,1737450652684,-271.05690061,0.00020821,2]
[349818563,1737450652694,-726.391772,0.00020821,2]
[349818564,1737450652704,-151.0,0.00020821,2]
[349818565,1737450652713,-500.0,0.00020821,2]
[349818566,1737450652723,-500.0,0.00020821,2]
[349818567,1737450652733,-500.0,0.00020821,2]
[349818568,1737450652743,-500.0,0.00020821,2]
[349818569,1737450652752,-577.612484,0.00020821,2]
[349818570,1737450652762,-500.0,0.00020821,2]
[349818571,1737450652773,-577.612484,0.00020821,2]
[349818572,1737450652783,-1200.229589,0.00020821,2]
[349818573,1737450652792,-500.0,0.00020821,2]
[349818574,1737450652802,-12658.58,0.00020821,2]
[349818575,1737450652812,-500.0,0.00020821,2]
[349818576,1737450652823,-1200.229589,0.00020821,2]
[349818577,1737450652833,-500.0,0.00020821,2]
[349818578,1737450652843,-996.22,0.00020821,2]
[349818579,1737450652852,-500.0,0.00020821,2]
[349818580,1737450652862,-151.0,0.00020821,2]
[349818581,1737450652871,-1636.09,0.00020821,2]
[349818582,1737450652881,-622.86,0.00020821,2]
[349818583,1737450652890,-162.54268988,0.00020821,2]
[349818584,1737450652900,-151.0,0.00020821,2]
[349818585,1737450652909,-637.52154407,0.00020821,2]
[349818586,1737450652919,-500.0,0.00020821,2]
[349818587,1737450652928,-517.41,0.00020821,2]
[349818588,1737450652937,-775.51,0.00020821,2]
[349818589,1737450652947,-1139.84,0.00020821,2]
[349818590,1737450652956,-500.0,0.00020821,2]
[349818591,1737450652965,-704.93,0.00020821,2]
[349818592,1737450652974,-1296.17,0.00020821,2]
[349818593,1737450652989,-500.0,0.00020821,2]
[349818594,1737450653000,-500.0,0.00020821,2]
[349818595,1737450653010,-1305.54,0.00020821,2]
[349818596,1737450653019,-500.0,0.00020821,2]
[349818597,1737450653029,-500.0,0.00020821,2]
[349818598,1737450653042,-1608.19,0.00020821,2]
[349818599,1737450653051,-151.0,0.00020821,2]
[349818600,1737450653059,-151.0,0.00020821,2]
[349818601,1737450653072,-500.0,0.00020821,2]
[349818602,1737450653081,-1609.07,0.00020821,2]
[349818603,1737450653090,-728.03,0.00020821,2]
[349818604,1737450653099,-500.0,0.00020821,2]
[349818605,1737450653107,-545.49,0.00020821,2]
[349818606,1737450653116,-839.08,0.00020821,2]
[349818607,1737450653125,-348.06741826,0.00020821,2]
[349818608,1737450653135,-500.0,0.00020821,2]
[349818609,1737450653143,-1179.906541,0.00020821,2]
[349818610,1737450653153,-500.0,0.00020821,2]
[349818611,1737450653163,-927.49,0.00020821,2]
[349818612,1737450653172,-500.0,0.00020821,2]
[349818613,1737450653181,-500.0,0.00020821,2]
[349818614,1737450653190,-500.0,0.00020821,2]
[349818615,1737450653199,-1146.462683,0.00020821,2]
[349818616,1737450653208,-537.93,0.00020821,2]
[349818617,1737450653218,-1146.462683,0.00020821,2]
[349818618,1737450653228,-237.806279,0.00020821,2]
[349818619,1737450653237,-237.806279,0.00020821,2]
[349818620,1737450653246,-500.0,0.00020821,2]
[349818621,1737450653256,-805.94,0.00020821,2]
[349818622,1737450653265,-557.12,0.00020821,2]
[349818623,1737450653274,-837.36,0.00020821,2]
[349818624,1737450653283,-500.0,0.00020821,2]
[349818625,1737450653293,-500.0,0.00020821,2]
[349818626,1737450653303,-500.0,0.00020821,2]
[349818627,1737450653315,-1207.54,0.00020821,2]
[349818628,1737450653324,-482.82045016,0.00020821,2]
[349818629,1737450653334,-500.0,0.00020821,2]
[349818630,1737450653343,-500.0,0.00020821,2]
[349818631,1737450653352,-1050.36,0.00020821,2]
[349818632,1737450653362,-728.95,0.00020821,2]
[349818633,1737450653371,-654.59,0.00020821,2]
[349818634,1737450653379,-151.0,0.00020821,2]
[349818635,1737450653389,-1201.91,0.00020821,2]
[349818636,1737450653398,-500.0,0.00020821,2]
[349818637,1737450653408,-821.41,0.00020821,2]
[349818638,1737450653419,-151.0,0.00020821,2]
[349818639,1737450653428,-500.0,0.00020821,2]
[349818640,1737450653437,-1041.36,0.00020821,2]
[349818641,1737450653447,-500.0,0.00020821,2]
[349818642,1737450653456,-151.0,0.00020821,2]
[349818643,1737450653465,-626.41,0.00020821,2]
[349818644,1737450653474,-151.0,0.00020821,2]
[349818645,1737450653483,-599.33,0.00020821,2]
[349818646,1737450653493,-500.0,0.00020821,2]
[349818647,1737450653503,-795.91,0.00020821,2]
[349818648,1737450653512,-1676.17,0.00020821,2]
[349818649,1737450653521,-537.99,0.00020821,2]
[349818650,1737450653530,-151.0,0.00020821,2]
[349818651,1737450653539,-1571.69,0.00020821,2]
[349818652,1737450653549,-1491.21,0.00020821,2]
[349818653,1737450653558,-1067.25,0.00020821,2]
[349818654,1737450653569,-1814.55,0.00020821,2]
[349818655,1737450653578,-151.0,0.00020821,2]
[349818656,1737450653587,-289.436888,0.00020821,2]
[349818657,1737450653596,-573.56,0.00020821,2]
[349818658,1737450653607,-182.506579,0.00020821,2]
[349818659,1737450653618,-784.8,0.00020821,2]
[349818660,1737450653628,-500.0,0.00020821,2]
[349818661,1737450653638,-2494.89,0.00020821,2]
[349818662,1737450653647,-182.506579,0.00020821,2]
[349818663,1737450653657,-502.38,0.00020821,2]
[349818664,1737450653667,-500.0,0.00020821,2]
[349818665,1737450653678,-151.0,0.00020821,2]
[349818666,1737450653691,-695.98,0.00020821,2]
[349818667,1737450653705,-500.0,0.00020821,2]
[349818668,1737450653717,-151.0,0.00020821,2]
[349818669,1737450653730,-1436.11,0.00020821,2]
[349818670,1737450653743,-824.62,0.00020821,2]
[349818671,1737450653755,-500.0,0.00020821,2]
[349818672,1737450653767,-764.64,0.00020821,2]
[349818673,1737450653776,-500.0,0.00020821,2]
[349818674,1737450653787,-500.0,0.00020821,2]
[349818675,1737450653797,-500.0,0.00020821,2]
[349818676,1737450653807,-1470.78,0.00020821,2]
[349818677,1737450653817,-1333.1,0.00020821,2]
[349818678,1737450653827,-500.0,0.00020821,2]
[349818679,1737450653836,-1291.48,0.00020821,2]
[349818680,1737450653845,-500.0,0.00020821,2]
[349818681,1737450653855,-500.0,0.00020821,2]
[349818682,1737450653865,-945.45,0.00020821,2]
[349818683,1737450653875,-668.66,0.00020821,2]
[349818684,1737450653884,-203.75259026,0.00020821,2]
[349818685,1737450653894,-500.0,0.00020821,2]
[349818686,1737450653903,-1457.67,0.00020821,2]
[349818687,1737450653913,-500.0,0.00020821,2]
[349818688,1737450653923,-1553.35,0.00020821,2]
[349818689,1737450653932,-434.99891,0.00020821,2]
[349818690,1737450653943,-500.0,0.00020821,2]
[349818691,1737450653952,-151.0,0.000209,2]
[349818692,1737450653963,-151.0,0.000209,2]
[349818693,1737450653972,-151.0,0.000209,2]
[349818694,1737450653983,-692.671739,0.000209,2]
[349818695,1737450653993,-692.671739,0.000209,2]
[349818696,1737450654002,-151.0,0.000209,2]
[349818697,1737450654012,-151.0,0.000209,2]
[349818698,1737450654022,-233.788884,0.000209,2]
[349818699,1737450654033,-165.157388,0.000209,2]
[349818700,1737450654046,-233.788884,0.000209,2]
[349818701,1737450654056,-151.0,0.000209,2]
[349818702,1737450654068,-161.509,0.000209,2]
[349818703,1737450654078,-203.82937226,0.000209,2]
[349818704,1737450654088,-151.0,0.0002095,2]
[349818705,1737450654097,-151.0,0.0002095,2]
[349818706,1737450654106,-151.0,0.0002095,2]
[349818707,1737450654115,-151.0,0.0002095,2]
[349818708,1737450654124,-151.0,0.0002095,2]
[349818709,1737450654134,-151.0,0.0002095,2]
[349818710,1737450654143,-151.0,0.0002095,2]
[349818711,1737450654153,-151.0,0.0002095,2]
[349818712,1737450654162,-151.421503,0.0002095,2]
[349818713,1737450654171,-151.421503,0.0002095,2]
[349818714,1737450654181,-151.0,0.0002095,2]
[349818715,1737450654190,-537.04,0.00020958,2]
[349818716,1737450654199,-150.0,0.00021,2]
[349818717,1737450654209,-150.0,0.00021,2]
[349818718,1737450654218,-153.669,0.00021,2]
[349818719,1737450654228,-170.006,0.00021,2]
[349818720,1737450654237,-252.401,0.00021,2]
[349818721,1737450654246,-2035.228,0.00021,2]
[349818722,1737450654255,-1356.552,0.00021,2]
[349818723,1737450654264,-153.219,0.00021,2]
[349818724,1737450654381,-581.396,0.00021,2]
[349818725,1737450654391,-636.0,0.00021,2]
[349818726,1737450654400,-1864.0,0.00021,2]
[349818727,1737450654410,-781.0,0.00021,2]
[349818728,1737450654419,-2948.0,0.00021,2]
[349818729,1737450654429,-1261.0,0.00021,2]
[349818730,1737450654438,-907.0,0.00021,2]
[349818731,1737450654448,-552.834,0.00021,2]
[349818732,1737450654457,-151.0,0.00021,2]
[349818733,1737450654467,-155.622652,0.00021,2]
[349818734,1737450654476,-151.0,0.00021,2]
[349818735,1737450654486,-726.391772,0.00021,2]
[349818736,1737450654495,-726.391772,0.00021,2]
[349818737,1737450654505,-151.0,0.00021,2]
[349818738,1737450654515,-577.612484,0.00021,2]
[349818739,1737450654525,-577.612484,0.00021,2]
[349818740,1737450654534,-1200.229589,0.00021,2]
[349818741,1737450654544,-1200.229589,0.00021,2]
[349818742,1737450654554,-151.0,0.00021,2]
[349818743,1737450654566,-151.0,0.00021,2]
[349818744,1737450654576,-290.873762,0.00021,2]
[349818745,1737450654586,-290.873762,0.00021,2]
[349818746,1737450654596,-203.82937226,0.00021025,2]
[349818747,1737450654606,-500.0,0.00021095,2]
[349818748,1737450654617,-888.22,0.00021095,2]
[349818749,1737450654627,-537.04,0.00021095,2]
[349818750,1737450654637,-500.0,0.00021095,2]
[349818751,1737450654647,-746.9,0.00021095,2]
[349818752,1737450654657,-151.0,0.00021095,2]
[349818753,1737450654666,-156.721711,0.00021095,2]
[349818754,1737450654675,-692.671739,0.00021095,2]
[349818755,1737450654685,-692.671739,0.00021095,2]
[349818756,1737450654694,-500.0,0.00021095,2]
[349818757,1737450654704,-1111.59,0.00021095,2]
[349818758,1737450654713,-500.0,0.00021095,2]
[349818759,1737450654723,-500.0,0.00021095,2]
[349818760,1737450654733,-500.0,0.00021095,2]
[349818761,1737450654742,-500.0,0.00021095,2]
[349818762,1737450654751,-266.33578115,0.00021095,2]
[349818763,1737450654760,-500.0,0.00021095,2]
[349818764,1737450654770,-500.0,0.00021095,2]
[349818765,1737450654779,-500.0,0.00021095,2]
[349818766,1737450654789,-12658.58,0.00021095,2]
[349818767,1737450654798,-500.0,0.00021095,2]
[349818768,1737450654808,-500.0,0.00021095,2]
[349818769,1737450654820,-996.22,0.00021095,2]
[349818770,1737450654829,-440.86448352,0.00021095,2]
[349818771,1737450654838,-1636.09,0.00021095,2]
[349818772,1737450654847,-622.86,0.00021095,2]
[349818773,1737450654857,-500.0,0.00021095,2]
[349818774,1737450654866,-517.41,0.00021095,2]
[349818775,1737450654875,-775.51,0.00021095,2]
[349818776,1737450654885,-1139.84,0.00021095,2]
[349818777,1737450654894,-500.0,0.00021095,2]
[349818778,1737450654904,-704.93,0.00021095,2]
[349818779,1737450654914,-1296.17,0.00021095,2]
[349818780,1737450654923,-500.0,0.00021095,2]
[349818781,1737450654932,-500.0,0.00021095,2]
[349818782,1737450654942,-1305.54,0.00021095,2]
[349818783,1737450654951,-500.0,0.00021095,2]
[349818784,1737450654960,-500.0,0.00021095,2]
[349818785,1737450654970,-1608.19,0.00021095,2]
[349818786,1737450654979,-151.0,0.00021095,2]
[349818787,1737450654988,-151.0,0.00021095,2]
[349818788,1737450654997,-500.0,0.00021095,2]
[349818789,1737450655006,-1609.07,0.00021095,2]
[349818790,1737450655015,-728.03,0.00021095,2]
[349818791,1737450655024,-500.0,0.00021095,2]
[349818792,1737450655036,-545.49,0.00021095,2]
[349818793,1737450655045,-839.08,0.00021095,2]
[349818794,1737450655054,-500.0,0.00021095,2]
[349818795,1737450655065,-1179.906541,0.00021095,2]
[349818796,1737450655075,-500.0,0.00021095,2]
[349818797,1737450655084,-927.49,0.00021095,2]
[349818798,1737450655093,-500.0,0.00021095,2]
[349818799,1737450655103,-500.0,0.00021095,2]
[349818800,1737450655112,-500.0,0.00021095,2]